[Event "Sardinia World Festival-A 2024"]
[Site "Orosei"]
[Date "2024.05.01"]
[Round "6.32"]
[White "Zemach, Nadav"]
[Black "Kanyamarala, Tarun"]
[Result "1/2-1/2"]
[ECO "E04"]
[WhiteElo "2396"]
[BlackElo "2293"]
[Annotator "TA"]
[PlyCount "86"]
[EventDate "2024.04.26"]
[EventType "swiss"]
[EventCountry "ITA"]
[SourceTitle "playchess.com"]
[Source "ChessBase"]
[SourceQuality "1"]
[TimeControl "40/5400+30:1800+30"]

{[%evp 11,86,-4,0,0,0,-9,0,0,0,-8,0,0,0,-7,-14,0,-3,0,0,-5,0,0,0,0,0,0,0,0,0,0,0,0,0,0,14,16,10,20,31,20,25,16,18,0,0,0,0,0,0,0,7,0,0,0,0,0,0,0,40,-41,-41,-43,20,20,195,36,18,19,22,29,126,0,0,0,77,0,0]} 1. d4 {[%emt 0:00:03]} Nf6 {[%emt 0:00:09]} 2. c4 {[%emt 0:00:05]} e6 {[%emt 0:00:08]} 3. Nf3 {[%emt 0:00:06]} d5 {[%emt 0:00:09]} 4. g3 {[%emt 0:00:30]} dxc4 {[%emt 0:00:14]} 5. Bg2 {[%emt 0:00:06]} c6 {[%emt 0:00:15]} 6. O-O {[%emt 0:00:36]} b5 {[%emt 0:00:18]} 7. Ne5 {[%emt 0:01:03]} Bb7 {[%emt 0:00:17]} 8. a4 {[%emt 0:00:10]} a6 {[%emt 0:00:18]} 9. b3 {[%emt 0:06:00]} cxb3 {[%emt 0:00:17]} 10. Bb2 {[%emt 0:00:33]} Nbd7 {[%emt 0:01:54]} 11. Nd2 {[%emt 0:08:57]} (11. Bxc6 Bxc6 12. Nxc6 Qb6 13. axb5 Qxb5 $15) 11... Nxe5 {[%emt 0:00:46]} 12. dxe5 {[%emt 0:00:03]} Nd7 {[%emt 0:00:18]} 13. Qxb3 {[%emt 0:26:36]} (13. Ne4 {is more complex.} b4 14. Nd6+ Bxd6 15. exd6 Qb6 16. Bxg7 Rg8 17. a5) 13... Be7 {[%emt 0:00:50]} 14. Ne4 {[%emt 0:01:11]} O-O {[%emt 0:00:40]} 15. Nd6 {[%emt 0:10:33]} Bxd6 {[%emt 0:00:46]} 16. exd6 {[%emt 0:00:03]} Qb6 {[%emt 0:01:13]} 17. a5 {[%emt 0:11:52]} Qa7 {[%emt 0:01:33]} 18. Bxc6 $1 {[%emt 0:07:35]} Bxc6 {[%emt 0:01:06]} 19. Qc3 $1 {[%emt 0:00:03][%csl Gb2,LRc6,LRg7][%cal Rc3g7]} e5 $1 {[%emt 0:00:48] ...Rac8 would now be deadly.} 20. Qxc6 {[%emt 0:00:09]} Rac8 {[%emt 0:00:48]} 21. Qf3 {[%emt 0:06:24]} Rc4 {[%emt 0:00:41]} 22. Rac1 {[%emt 0:02:16]} Rfc8 {[%emt 0:01:09]} 23. Rxc4 {[%emt 0:01:38]} bxc4 {[%emt 0:09:19]} 24. Bc3 {[%emt 0:15:58]} Qc5 {[%emt 0:14:48]} 25. Rd1 {[%emt 0:00:00]} Qc6 {[%emt 0:01:49]} 26. Qg4 {[%emt 0:00:00]} Rd8 {[%emt 0:20:39][%cal Bc8d8,Bd8b8,Bb8b3][%mdl 32]} 27. h4 {[%emt 0:00:00][%cal Bh2h4,Bh4h5][%mdl 32]} h6 {[%emt 0:08:48]} 28. Rd2 {[%emt 0:00:00]} Rb8 {[%emt 0:01:31]} 29. Qf5 {[%emt 0:00:00] Inhibits Rb1+.} Rb3 {[%emt 0:01:27]} 30. Qc2 {[%emt 0:00:00]} (30. Bxe5 $2 g6 (30... Rb5 31. f4 $11) 31. Qc2 (31. Qf4 $2 Rb1+) 31... Nxe5 $19) 30... Rb5 {[%emt 0:12:52]} 31. h5 {[%emt 0:00:00]} Nf6 {[%emt 0:06:48]} 32. Qd1 {[%emt 0:00:59] d7 is the strong threat.} Qd7 {[%emt 0:00:28][%cal Of6e4]} (32... Nxh5 $2 33. d7 Qe4 34. d8=Q+ $18 (34. d8=B $2 Rb1 $19)) 33. Rb2 {[%emt 0:01:58]} Rxb2 {[%emt 0:04:14]} 34. Bxb2 $11 {[%emt 0:00:00][%mdl 4096] Endgame. KQB-KQN} Qh3 {[%emt 0:00:34] ( -> ...Ng4)} 35. Qf1 {[%emt 0:00:10]} (35. Bxe5 $2 Ng4 36. f3 Qh2+ 37. Kf1 Qh1#) (35. e4 $14) 35... Qxh5 $15 {[%emt 0:01:46]} 36. e4 {[%emt 0:00:42]} Ng4 {[%emt 0:02:42]} (36... Nxe4 $2 {is the wrong capture.} 37. d7 (37. Qxc4 Qd1+ 38. Kg2 Nxd6 $11) 37... Qg5 38. Qxc4 $18) (36... Kh7 $15) 37. Kg2 $11 {[%emt 0:00:00][%cal Od6d7] Active counter play!} Qh2+ {[%emt 0:04:15]} 38. Kf3 {[%emt 0:00:01]} Nf6 {[%emt 0:01:08]} 39. Qxc4 {[%emt 0:00:15] Hoping for Qc8+.} Qh1+ {[%emt 0:00:16]} 40. Ke2 {[%emt 0:01:16] aiming for Qc8+.} Qh5+ {[%emt 0:01:27] [#]} (40... Kh7 $1 $11 {keeps the balance.}) 41. Ke1 {[%emt 0:09:30]} (41. Kd2 $142 $1 Qf3 42. Kc1 Qxf2 43. Bxe5 Qe1+ 44. Kc2 Nxe4 45. Qc8+ (45. Qxa6 Qf2+ 46. Kb1 Qf5 $11) 45... Kh7 46. d7 (46. Qxa6 $2 {loses.} Qf2+ 47. Kb1 Nc5 $19) 46... Qd2+ 47. Kb1 Qe1+ 48. Ka2 Qd2+ 49. Bb2 Qd5+ 50. Ka1 Qd1+ 51. Ka2) 41... Qh1+ $16 {[%emt 0:03:05]} 42. Ke2 {[%emt 0:00:13] Strongly threatening Qc8+.} Qh5+ {[%emt 0:01:07] [#]} 43. Ke1 {[%emt 0:00:46]} (43. Kd2 $1 $16 Qf3 44. Kc1 Qxf2 45. Bxe5) 43... Qh1+ {[%emt 0:02:15] Weighted Error Value: White=0.12 (very precise) /Black=0.07 (flawless) .  Mistake:       	White=3     	Black=2      Inaccurate:     	White=1     	Black=1      OK:         	White=15    	Black=16     Best:        	White=4     	Black=5      Strong:       	White=1     	Black=1} 1/2-1/2

[Event "Sardinia World Festival-A 2024"]
[Site "Orosei"]
[Date "2024.05.01"]
[Round "6.33"]
[White "Vergara Anton, Diego"]
[Black "Loftgaard, Mikkel Vinh"]
[Result "1-0"]
[ECO "E05"]
[WhiteElo "2387"]
[BlackElo "2227"]
[Annotator "TA"]
[PlyCount "51"]
[EventDate "2024.04.26"]
[EventType "swiss"]
[EventCountry "ITA"]
[SourceTitle "playchess.com"]
[Source "ChessBase"]
[SourceQuality "1"]
[TimeControl "40/5400+30:1800+30"]

{[%evp 18,51,16,3,79,92,107,109,97,92,254,258,251,256,233,250,319,341,311,287,502,502,933,937,1164,825,824,821,802,802,837,716,731,725,747,741]} 1. Nf3 {[%emt 0:00:41]} d5 {[%emt 0:00:09]} 2. g3 {[%emt 0:00:09]} Nf6 {[%emt 0:00:19]} 3. Bg2 {[%emt 0:00:06]} e6 {[%emt 0:00:44]} 4. O-O {[%emt 0:00:34]} Be7 {[%emt 0:00:26]} 5. d4 {[%emt 0:00:13]} O-O {[%emt 0:00:11]} 6. c4 {[%emt 0:00:07]} dxc4 {[%emt 0:02:47]} 7. Qc2 {[%emt 0:00:43]} a6 {[%emt 0:00:38]} 8. a4 {[%emt 0:00:11]} Bd7 {[%emt 0:02:29]} 9. Rd1 {[%emt 0:00:14]} Bc6 {[%emt 0:01:21]} 10. Nc3 {[%emt 0:00:09]} Nbd7 {[%emt 0:01:30]} (10... Bxf3 $11 {keeps the balance.} 11. exf3 Nc6) 11. e4 $16 {[%emt 0:01:39][%cal Be2e4,Be4e5,Be5e6][%mdl 32] Threatens to win with d5.} b5 {[%emt 0:03:53] [#]} 12. d5 $1 {[%emt 0:00:51]} exd5 {[%emt 0:00:24] [#] White is better.} 13. e5 {[%emt 0:00:05] White is more active.} Ne8 $2 {[%emt 0:09:07]} (13... Ng4 $16) 14. Nxd5 $18 {[%emt 0:00:52]} Bxd5 {[%emt 0:00:53]} 15. Rxd5 {[%emt 0:00:03]} c6 {[%emt 1:13:09]} 16. Rd1 {[%emt 0:01:25][%mdl 1024] White has strong compensation.} Qc7 {[%emt 0:00:00]} 17. Bf4 {[%emt 0:03:39]} Nc5 {[%emt 0:00:00]} 18. e6 {[%emt 0:00:39]} (18. Nd4 g5 19. Nxc6 (19. Bxc6 Rd8 $15) 19... Ng7 20. Nxe7+ Qxe7 21. Bxa8 gxf4 22. axb5 axb5) 18... Qb7 $2 {[%emt 0:00:00]} (18... Qc8 {is a better defense.} 19. Nd4 Nxe6 20. Nxc6 (20. Bxc6 $2 Nxd4 21. Rxd4 Qxc6 $19) 20... Bf6 21. axb5 c3 (21... Nxf4 $2 22. gxf4 Kh8 23. b6 $18) 22. bxc3 Nxf4) 19. Ne5 {[%emt 0:05:31][%csl LRc6,LRf7] White is clearly winning.} f6 {[%emt 0:00:00]} (19... fxe6 $142 20. axb5 (20. Nxc6 Bd6 $18) (20. Bxc6 Qc7 $18) 20... Qc7 21. Nxc6 (21. Bxc6 g5 $18) (21. Ng6 Rxf4 22. Nxf4 Nd6 $18) 21... Bd6) 20. Nxc6 {[%emt 0:01:34]} Nxe6 {[%emt 0:00:00]} 21. Nxe7+ {[%emt 0:01:04]} Qxe7 {[%emt 0:00:00]} 22. Bxa8 {[%emt 0:00:14]} Nxf4 {[%emt 0:00:00]} 23. gxf4 {[%emt 0:00:07]} Nc7 {[%emt 0:00:00]} 24. Bd5+ {[%emt 0:00:48]} Nxd5 {[%emt 0:00:00]} 25. Rxd5 {[%emt 0:00:12]} Qe6 {[%emt 0:00:00]} 26. Qf5 {[%emt 0:00:20] White took control after the opening.   Weighted Error Value: White=0.06 (flawless) /Black=0.74.  Loses game:     	---       	Black=1      Mistake:       	---       	Black=2      OK:         	White=4     	Black=3      Best:        	White=4     	---        Strong:       	White=1     	---} 1-0

[Event "Sardinia World Festival-A 2024"]
[Site "Orosei"]
[Date "2024.05.01"]
[Round "6.34"]
[White "Bellia, Fabrizio"]
[Black "Shvedova, Alexandra"]
[Result "1-0"]
[ECO "B55"]
[WhiteElo "2384"]
[BlackElo "2203"]
[Annotator "RC"]
[PlyCount "69"]
[EventDate "2024.04.26"]
[EventType "swiss"]
[EventCountry "ITA"]
[SourceTitle "playchess.com"]
[Source "ChessBase"]
[SourceQuality "1"]
[TimeControl "40/5400+30:1800+30"]

1. e4 {[%emt 0:00:04]} c5 {[%emt 0:00:10]} 2. Nf3 {[%emt 0:00:05]} d6 {[%emt 0:00:04]} 3. d4 {[%emt 0:00:07]} cxd4 {[%emt 0:00:05]} 4. Nxd4 {[%emt 0:00:03]} Nf6 {[%emt 0:00:07]} 5. f3 {[%emt 0:00:14]} e5 {[%emt 0:00:45]} 6. Nb3 {[%emt 0:00:05]} Be6 {[%emt 0:00:44]} 7. c4 {[%emt 0:00:12]} Nbd7 {[%emt 0:00:06]} 8. Be3 {[%emt 0:00:06]} Rc8 {[%emt 0:00:07]} 9. Nc3 {[%emt 0:00:04]} Bxc4 {[%emt 0:02:09]} 10. Bxc4 {[%emt 0:01:21]} Rxc4 {[%emt 0:00:04]} 11. Qd3 {[%emt 0:00:04]} Rc8 {[%emt 0:02:18]} 12. Bxa7 {[%emt 0:00:18]} b6 {[%emt 0:03:57]} 13. O-O {[%emt 0:00:26]} d5 {[%emt 0:12:51]} 14. exd5 {[%emt 0:07:22]} Bb4 {[%emt 0:00:09]} 15. Nb5 {[%emt 0:09:48]} O-O {[%emt 0:00:11]} 16. Rad1 {[%emt 0:19:06]} Re8 {[%emt 0:24:57]} 17. d6 {[%emt 0:06:28]} Re6 {[%emt 0:10:41]} 18. a3 {[%emt 0:02:23]} Nc5 {[%emt 0:03:56]} 19. Qc4 {[%emt 0:01:39]} Nxb3 {[%emt 0:01:01]} 20. Qxb4 {[%emt 0:04:15]} Nc5 {[%emt 0:04:57]} 21. Rc1 {[%emt 0:17:12]} Nfd7 {[%emt 0:05:41]} 22. Qd2 {[%emt 0:01:07]} e4 {[%emt 0:10:29]} 23. fxe4 {[%emt 0:02:03]} Nxe4 {[%emt 0:00:13]} 24. Qf4 {[%emt 0:02:00]} Nef6 {[%emt 0:00:21]} 25. Rc7 {[%emt 0:02:22]} Qe8 {[%emt 0:04:11]} 26. Qc1 {[%emt 0:04:33]} Rd8 {[%emt 0:00:26]} 27. h3 {[%emt 0:00:31]} Re2 {[%emt 0:03:22]} 28. Nd4 {[%emt 0:00:55]} Qe3+ {[%emt 0:06:27]} 29. Qxe3 {[%emt 0:00:38]} Rxe3 {[%emt 0:00:04]} 30. Nc6 {[%emt 0:01:18]} Rde8 {[%emt 0:00:35]} 31. Rxf6 {[%emt 0:06:10]} Nxf6 {[%emt 0:00:05]} 32. d7 {[%emt 0:00:02]} Nxd7 {[%emt 0:00:11]} 33. Rxd7 {[%emt 0:00:04]} Rb3 {[%emt 0:03:04]} 34. Rd2 {[%emt 0:00:32]} f6 {[%emt 0:00:42]} 35. Nd4 {[%emt 0:00:41]} 1-0

[Event "Sardinia World Festival-A 2024"]
[Site "Orosei"]
[Date "2024.05.01"]
[Round "6.35"]
[White "Ibrayev, Nurlan"]
[Black "Montorsi, Matteo"]
[Result "1-0"]
[ECO "B43"]
[WhiteElo "2368"]
[BlackElo "2168"]
[Annotator "TA"]
[PlyCount "139"]
[EventDate "2024.04.26"]
[EventType "swiss"]
[EventCountry "ITA"]
[SourceTitle "playchess.com"]
[Source "ChessBase"]
[SourceQuality "1"]
[TimeControl "40/5400+30:1800+30"]

{[%evp 39,139,123,180,106,106,96,106,73,213,44,67,52,75,70,71,65,90,78,69,71,71,79,95,90,89,54,46,60,74,82,188,205,213,187,222,189,261,253,261,253,248,279,257,269,300,293,293,285,266,228,241,151,133,125,125,125,1050,893,1141,1102,1143,1134,1064,1064,989,973,989,0,961,780,1125,980,5050,4843,4133,0,1097,670,5206,4113,5497,5292,4657,1645,5439,5398,5085,5040,29980,29981,29982,29983,29984,29985,29985,29986,29987,29988,29990,29989,29990,29991]} 1. e4 {[%emt 0:03:25]} c5 {[%emt 0:00:08]} 2. Nc3 {[%emt 0:00:05]} a6 {[%emt 0:00:16]} 3. g3 {[%emt 0:02:37]} b5 {[%emt 0:00:24]} 4. Bg2 {[%emt 0:00:14]} Bb7 {[%emt 0:00:08]} 5. Nge2 {[%emt 0:00:28]} Nf6 {[%emt 0:02:32]} 6. d4 {[%emt 0:01:23]} cxd4 {[%emt 0:05:17]} 7. Nxd4 {[%emt 0:00:24]} e6 {[%emt 0:01:05]} 8. O-O {[%emt 0:00:08]} d6 {[%emt 0:01:56]} 9. Re1 {[%emt 0:00:14]} Qc7 {[%emt 0:00:34]} 10. a4 {[%emt 0:04:44]} bxa4 {[%emt 0:08:38]} 11. Nd5 {[%emt 0:22:21]} Qd8 {[%emt 0:22:27]} 12. Nxf6+ {[%emt 0:02:47]} gxf6 {[%emt 0:06:45]} 13. Qh5 {[%emt 0:00:36]} Qd7 {[%emt 0:01:48]} 14. Bh3 {[%emt 0:03:24]} Kd8 {[%emt 0:00:22]} 15. Bh6 {[%emt 0:06:18]} Nc6 {[%emt 0:02:35]} 16. Rxa4 {[%emt 0:00:43]} Nxd4 {[%emt 0:04:21]} 17. Rxd4 {[%emt 0:01:31]} Bxh6 {[%emt 0:00:13]} 18. Qxh6 {[%emt 0:00:03]} Ke7 {[%emt 0:00:23]} 19. Red1 {[%emt 0:05:51]} Rad8 {[%emt 0:05:53]} 20. Bg2 $2 {[%emt 0:12:16]} (20. e5 $1 $18 {and the rest is easy.} fxe5 21. Qg5+ Kf8 22. Rxd6 Qxd6 23. Rxd6 (23. Qxd8+ Qxd8 24. Rxd8+ Kg7 $16) 23... Rxd6 24. Qxe5) 20... Qc6 {[%emt 0:04:53] [#]} (20... Qc7 $16 {was worth a try.} 21. b3 a5) 21. c3 {[%emt 0:02:01]} ({Better is} 21. R1d3 $1 $18 {Threatens to win with Rb4.} Rhg8 22. Rb3 (22. Qxh7 $2 Rh8 $19)) 21... a5 $16 {[%emt 0:10:12]} 22. R4d3 {[%emt 0:08:32]} Rhg8 {[%emt 0:01:33]} 23. Bf3 {[%emt 0:04:50]} (23. Qxh7 $2 Rh8 24. Qg7 Rdg8 $19) 23... Qb5 {[%emt 0:06:58] [#]} (23... e5 $16 {is a better defense.}) 24. Qd2 $2 {[%emt 0:04:14]} (24. Qxh7 $2 Rh8 25. Qg7 Rdg8 $19) (24. e5 $1 $18 Rg6 25. Qd2 (25. Qxh7 Bxf3 26. exd6+ Rxd6 $16) (25. exd6+ Rxd6 26. Qh5 Qxh5 $11) 25... Bxf3 26. exd6+ Rxd6 27. Rxd6 Bxd1 28. Rd8) 24... Qe5 {[%emt 0:00:54]} 25. Bg2 {[%emt 0:00:20]} Rd7 {[%emt 0:00:52]} 26. Rd4 {[%emt 0:02:11]} Rgd8 {[%emt 0:01:28]} 27. Qh6 {[%emt 0:00:48]} Qg5 {[%emt 0:05:40]} 28. Qxg5 {[%emt 0:03:08]} (28. Qxh7 {looks sharper.} Bc6 29. Ra1 Qb5 30. Rd2) 28... fxg5 {[%emt 0:00:02]} 29. Ra1 {[%emt 0:00:10]} Ra8 {[%emt 0:01:30]} 30. Rda4 {[%emt 0:00:15]} d5 {[%emt 0:00:09]} 31. exd5 {[%emt 0:03:28]} Bxd5 {[%emt 0:00:03]} 32. Rxa5 {[%emt 0:00:20]} Rxa5 {[%emt 0:00:05]} 33. Rxa5 {[%emt 0:00:02]} Bb3 {[%emt 0:00:33]} 34. Bf3 {[%emt 0:00:50]} (34. Rxg5 $2 {perishes.} Rd1+ 35. Bf1 Bc4 $19) 34... Rd2 {[%emt 0:00:49]} (34... f5 $16) 35. Rxg5 $18 {[%emt 0:00:40]} Rxb2 {[%emt 0:00:35]} 36. Rb5 {[%emt 0:00:14]} Rb1+ {[%emt 0:00:19]} 37. Kg2 {[%emt 0:00:06]} Bc2 {[%emt 0:00:09]} (37... Kd7 $142 38. Kh3 f6) 38. Rxb1 $18 {[%emt 0:00:24]} Bxb1 {[%emt 0:00:03]} 39. Kf1 {[%emt 0:00:53]} h6 {[%emt 0:01:54]} 40. Ke2 {[%emt 0:00:27]} Kd6 {[%emt 0:02:53]} 41. Ke3 {[%emt 0:31:12]} e5 {[%emt 0:05:27]} 42. Be4 {[%emt 0:00:00]} Ba2 {[%emt 0:00:02]} 43. f4 {[%emt 0:00:00]} f6 {[%emt 0:00:58]} 44. Bd3 {[%emt 0:00:00]} Bd5 {[%emt 0:02:51]} 45. h4 {[%emt 0:00:00]} Bc6 {[%emt 0:03:42]} 46. Be2 {[%emt 0:00:00]} Bd5 {[%emt 0:02:39]} 47. c4 {[%emt 0:00:00]} Bc6 $2 {[%emt 0:04:46][%mdl 8192]} (47... Be6 $16) 48. fxe5+ $18 {[%emt 0:00:00]} Kxe5 {[%emt 0:08:45]} 49. Bf3 {[%emt 0:00:00]} Bd7 {[%emt 0:00:30]} 50. c5 {[%emt 0:00:00]} Bc8 {[%emt 0:00:53]} 51. Be4 {[%emt 0:00:00]} Bg4 {[%emt 0:01:34]} 52. Bb7 {[%emt 0:00:56]} Be6 {[%emt 0:00:49]} 53. Bf3 {[%emt 0:02:54]} Bc8 {[%emt 0:01:23]} 54. Kd3 {[%emt 0:01:49]} Ba6+ {[%emt 0:00:27]} 55. Kc3 {[%emt 0:00:18]} Bc8 {[%emt 0:02:41]} 56. Kc4 {[%emt 0:00:47]} Be6+ {[%emt 0:02:53]} 57. Kc3 {[%emt 0:00:40]} (57. Kb5 $142 f5 58. c6) 57... Bc8 $1 $18 {[%emt 0:00:02]} 58. Bg2 {[%emt 0:03:08]} Be6 {[%emt 0:00:23]} 59. Bb7 {[%emt 0:00:59]} Bg4 {[%emt 0:00:56]} 60. Kc4 {[%emt 0:01:18]} Be2+ {[%emt 0:00:26]} 61. Kb4 {[%emt 0:00:24]} Kd4 {[%emt 0:00:06]} 62. c6 {[%emt 0:00:18]} Bf3 {[%emt 0:00:18]} 63. Kb5 {[%emt 0:00:41]} Ke3 {[%emt 0:00:19]} 64. Bc8 {[%emt 0:00:17]} Bxc6+ {[%emt 0:01:26]} 65. Kxc6 {[%emt 0:00:01]} h5 {[%emt 0:00:43]} 66. g4 {[%emt 0:00:10]} hxg4 {[%emt 0:00:13]} 67. h5 {[%emt 0:00:08]} Kf4 {[%emt 0:00:55]} 68. h6 {[%emt 0:00:07]} f5 {[%emt 0:00:14]} 69. Kd6 {[%emt 0:00:23]} Ke3 {[%emt 0:00:42]} 70. h7 {[%emt 0:00:20]} 1-0

[Event "Sardinia World Festival-A 2024"]
[Site "Orosei"]
[Date "2024.05.01"]
[Round "6.36"]
[White "Stoyanov, Tsvetan"]
[Black "Nandhidhaa, P V"]
[Result "1/2-1/2"]
[ECO "A29"]
[WhiteElo "2473"]
[BlackElo "2276"]
[Annotator "TA"]
[PlyCount "93"]
[EventDate "2024.04.26"]
[EventType "swiss"]
[EventCountry "ITA"]
[SourceTitle "playchess.com"]
[Source "ChessBase"]
[SourceQuality "1"]
[TimeControl "40/5400+30:1800+30"]

{[%evp 24,93,0,0,0,0,0,0,0,0,0,0,0,0,0,-22,0,0,0,0,18,15,21,19,42,52,39,47,48,0,7,0,0,0,0,0,11,0,0,0,0,0,0,0,0,0,0,0,0,0,0,0,0,0,0,0,0,0,0,0,0,0,0,6,6,8,8,0,0,0,26,0]} 1. c4 {[%emt 0:00:03]} e5 {[%emt 0:05:49]} 2. Nc3 {[%emt 0:00:22]} Nf6 {[%emt 0:00:35]} 3. Nf3 {[%emt 0:00:30]} Nc6 {[%emt 0:00:11]} 4. g3 {[%emt 0:00:18]} d5 {[%emt 0:00:50]} 5. cxd5 {[%emt 0:00:07]} Nxd5 {[%emt 0:00:10]} 6. Bg2 {[%emt 0:00:36]} Nb6 {[%emt 0:00:09]} 7. O-O {[%emt 0:00:23]} Be7 {[%emt 0:00:16]} 8. a3 {[%emt 0:00:47]} O-O {[%emt 0:00:58]} 9. b4 {[%emt 0:01:35]} Be6 {[%emt 0:01:35]} 10. d3 {[%emt 0:01:11]} a5 {[%emt 0:00:26]} 11. b5 {[%emt 0:00:38]} Nd4 {[%emt 0:01:04]} 12. Bb2 {[%emt 0:00:51]} Nb3 {[%emt 0:00:32]} 13. Rb1 {[%emt 0:00:27]} f6 {[%emt 0:02:12]} 14. Nd2 {[%emt 0:03:01]} Nxd2 {[%emt 0:00:58]} 15. Qxd2 {[%emt 0:00:01]} Nc4 {[%emt 0:01:21] The position is equal.} 16. Qc1 {[%emt 0:02:24]} (16. dxc4 $2 Qxd2 17. Rfd1 Qg5 18. Bxb7 Rad8 $19) 16... Nxb2 {[%emt 0:00:36]} 17. Qxb2 {[%emt 0:00:02]} Rb8 {[%emt 0:02:39]} 18. Rfc1 {[%emt 0:06:48]} Rf7 {[%emt 1:19:09]} 19. Na4 {[%emt 0:16:59]} b6 {[%emt 0:00:00] Prevents Nc5} 20. Rc6 {[%emt 0:01:58]} Bd6 {[%emt 0:00:00]} 21. Nc3 {[%emt 0:01:07]} f5 {[%emt 0:00:00] Prevents Ne4.} 22. a4 {[%emt 0:14:04]} Qd7 {[%emt 0:00:00]} 23. Bd5 {[%emt 0:08:20]} Bxd5 {[%emt 0:00:00]} 24. Nxd5 {[%emt 0:00:07]} Rbf8 {[%emt 0:00:00]} 25. Kg2 {[%emt 0:04:15]} e4 {[%emt 0:00:00]} 26. Qd4 {[%emt 0:09:20][%cal Od5b6] [#] Strongly threatening Nxb6!} f4 $1 {[%emt 0:00:00]} 27. Nxf4 {[%emt 0:01:22]} (27. Qxe4 $2 {is the wrong capture.} fxg3 28. f4 (28. fxg3 $2 {loses.} Rf2+ 29. Kg1 Qh3 $19) 28... Bxf4 (28... gxh2 29. e3 $17) 29. Nxf4 Rxf4 30. Qe6+ Qxe6 31. Rxe6 gxh2 (31... Rxa4 32. hxg3 Ra2 33. Rc1 $15) 32. Kxh2 Rxa4 $19) (27. dxe4 {with more complications.} fxg3 28. f3 gxh2 29. Nxb6 Qe7 30. Rxd6 Qxd6 31. Qxd6 cxd6 32. Nc4) 27... Bxf4 {[%emt 0:00:00]} 28. Qxd7 {[%emt 0:00:01]} Rxd7 {[%emt 0:00:00]} 29. gxf4 {[%emt 0:00:02]} Rxf4 $11 {[%emt 0:00:00][%mdl 4096] Endgame. KRR-KRR} 30. Rc4 {[%emt 0:00:03]} Rdf7 {[%emt 0:00:00]} 31. Rxe4 {[%emt 0:00:06]} Rxf2+ {[%emt 0:00:00]} 32. Kg1 {[%emt 0:00:01]} h6 {[%emt 0:00:00][%cal Bh7h6,Bh6h5,Bh5h4,Bh4h3][%mdl 32]} 33. Rc1 {[%emt 0:01:36][%cal Oc1c7]} R2f5 {[%emt 0:00:00]} 34. Re8+ {[%emt 0:04:49]} Kh7 {[%emt 0:00:00]} 35. Re4 {[%emt 0:03:47]} Kg8 {[%emt 0:00:00]} 36. h4 {[%emt 0:05:17]} R7f6 {[%emt 0:02:27]} 37. Rg4 {[%emt 0:05:55]} h5 {[%emt 0:00:19]} 38. Rg5 {[%emt 0:01:56]} Rxg5+ {[%emt 0:01:26]} 39. hxg5 {[%emt 0:00:01] KR-KR} Rg6 {[%emt 0:00:39]} 40. Rxc7 {[%emt 0:00:48]} Rxg5+ {[%emt 0:00:02]} 41. Kf2 {[%emt 0:10:56]} h4 {[%emt 0:06:16] Hoping for ...h3.} 42. Rc4 {[%emt 0:20:29]} h3 {[%emt 0:00:16] And now ...Rg2+ would win.} 43. Rh4 {[%emt 0:03:57]} Rg2+ {[%emt 0:00:46]} 44. Kf3 {[%emt 0:00:53]} Rh2 {[%emt 0:00:23]} 45. Rc4 {[%emt 0:00:59]} Rg2 {[%emt 0:00:48] [#] ...g5 is the strong threat.} 46. Rh4 {[%emt 0:01:31]} Rh2 {[%emt 0:00:20]} 47. Rc4 {[%emt 0:00:47] Weighted Error Value: White=0.04 (flawless) /Black=0.03 (flawless) .  Inaccurate:     	White=2     	---        OK:         	White=14    	Black=17     Best:        	White=1     	Black=4      Strong:       	---       	Black=1} 1/2-1/2

[Event "Sardinia World Festival-A 2024"]
[Site "Orosei"]
[Date "2024.05.01"]
[Round "6.37"]
[White "Favaloro, Andrea"]
[Black "Fava, Lorenzo"]
[Result "1/2-1/2"]
[ECO "A07"]
[WhiteElo "2412"]
[BlackElo "2279"]
[Annotator "RC"]
[PlyCount "53"]
[EventDate "2024.04.26"]
[EventType "swiss"]
[EventCountry "ITA"]
[SourceTitle "playchess.com"]
[Source "ChessBase"]
[SourceQuality "1"]
[TimeControl "40/5400+30:1800+30"]

1. Nf3 {[%emt 0:00:14]} d5 {[%emt 0:01:11]} 2. g3 {[%emt 0:00:20]} Nf6 {[%emt 0:00:49]} 3. Bg2 {[%emt 0:00:14]} Bf5 {[%emt 0:00:20]} 4. O-O {[%emt 0:00:23]} Nbd7 {[%emt 0:01:16]} 5. c4 {[%emt 0:00:30]} c6 {[%emt 0:00:14]} 6. cxd5 {[%emt 0:00:38]} cxd5 {[%emt 0:00:12]} 7. Qb3 {[%emt 0:01:18]} Qb6 {[%emt 0:01:18]} 8. Qxb6 {[%emt 0:02:47]} Nxb6 {[%emt 0:01:55]} 9. Nc3 {[%emt 0:00:11]} Bd7 {[%emt 0:02:28]} 10. d3 {[%emt 0:02:01]} e6 {[%emt 0:01:51]} 11. Bf4 {[%emt 0:07:32]} Be7 {[%emt 0:05:23]} 12. Ne5 {[%emt 0:04:35]} O-O {[%emt 0:02:14]} 13. Nxd7 {[%emt 0:04:48]} Nbxd7 {[%emt 0:03:39]} 14. Rac1 {[%emt 0:01:46]} a6 {[%emt 0:04:19]} 15. Rc2 {[%emt 0:06:03]} Rfc8 {[%emt 0:10:26]} 16. Rfc1 {[%emt 0:00:36]} Kf8 {[%emt 0:00:10]} 17. e4 {[%emt 0:12:11]} e5 {[%emt 0:14:05]} 18. Bd2 {[%emt 0:14:15]} d4 {[%emt 0:01:53]} 19. Ne2 {[%emt 0:00:31]} Rxc2 {[%emt 0:07:22]} 20. Rxc2 {[%emt 0:00:05]} Nc5 {[%emt 0:04:10]} 21. Nc1 {[%emt 0:00:55]} a5 {[%emt 0:05:39]} 22. Kf1 {[%emt 0:01:26]} Bd6 {[%emt 0:01:52]} 23. Ke2 {[%emt 0:00:36]} Nfd7 {[%emt 0:00:28]} 24. Bh3 {[%emt 0:01:00]} Ke7 {[%emt 0:00:41]} 25. f4 {[%emt 0:04:10]} f6 {[%emt 0:02:40]} 26. f5 {[%emt 0:04:14]} g5 {[%emt 0:01:24]} 27. Bf1 {[%emt 0:03:39]} 1/2-1/2